fUSD/lending_fUSD_20260601
["ID","MTS","AMOUNT","RATE_DAILY","PERIOD"]
[423656925,1780282269000,-378.0,0.0003567,80]
[423656924,1780282269000,-207.30041193,0.0003563,120]
[423656931,1780282269000,-1162.0,0.00035742,30]
[423656930,1780282269000,-1554.0,0.00035742,30]
[423656872,1780282269000,-300.0,0.00035562,2]
[423656928,1780282269000,-767.0,0.00035742,30]
[423656904,1780282269000,-500.0,0.00035616,7]
[423656917,1780282269000,-175.5148941,0.00035616,7]
[423656902,1780282269000,-500.0,0.00035616,7]
[423656894,1780282269000,-500.0,0.00035616,7]
[423656877,1780282269000,-218.25,0.00035564,120]
[423656873,1780282269000,-1097.19712337,0.00035562,2]
[423656878,1780282269000,-500.0,0.00035593,2]
[423656879,1780282269000,-500.0,0.00035593,2]
[423656882,1780282269000,-171161.65041697,0.0003561,2]
[423656883,1780282269000,-4518.05742312,0.0003561,2]
[423656884,1780282269000,-150.0,0.00035616,60]
[423656881,1780282269000,-871.63,0.00035593,2]
[423656880,1780282269000,-500.0,0.00035593,2]
[423656886,1780282269000,-150.0,0.00035616,2]
[423656888,1780282269000,-150.0,0.00035616,2]
[423656887,1780282269000,-150.0,0.00035616,2]
[423656885,1780282269000,-201.54,0.00035616,30]
[423656895,1780282269000,-500.0,0.00035616,7]
[423656901,1780282269000,-500.0,0.00035616,7]
[423656889,1780282269000,-269.95391703,0.00035616,2]
[423656903,1780282269000,-500.0,0.00035616,7]
[423656897,1780282269000,-500.0,0.00035616,7]
[423656896,1780282269000,-500.0,0.00035616,7]
[423656893,1780282269000,-500.0,0.00035616,7]
[423656899,1780282269000,-500.0,0.00035616,7]
[423656900,1780282269000,-500.0,0.00035616,7]
[423656892,1780282269000,-500.0,0.00035616,7]
[423656891,1780282269000,-500.0,0.00035616,7]
[423656890,1780282269000,-1000.0,0.00035616,120]
[423656898,1780282269000,-500.0,0.00035616,7]
[423656971,1780282270000,-1267.35193578,0.00036078,2]
[423656972,1780282270000,-13073.5842,0.00036093,2]
[423656969,1780282270000,-1308.37099236,0.00036078,2]
[423656973,1780282270000,-7296.60514781,0.00036137,50]
[423656967,1780282270000,-160.45,0.00036,40]
[423656956,1780282270000,-407.0,0.00035951,2]
[423656978,1780282270000,-632.0,0.00036214,11]
[423656968,1780282270000,-177.57,0.00036014,10]
[423656959,1780282270000,-150.0,0.00035951,2]
[423656962,1780282270000,-25129.79864492,0.00036,2]
[423656970,1780282270000,-1385.14187996,0.00036078,2]
[423656979,1780282270000,-13073.5842,0.00036221,2]
[423656974,1780282270000,-1148.5,0.00036153,30]
[423656992,1780282270000,-2000.0,0.00036639,120]
[423656975,1780282270000,-200.0,0.00036186,5]
[423656977,1780282270000,-378.0,0.0003621,110]
[423656980,1780282270000,-1530.89,0.00036262,7]
[423656982,1780282270000,-11954.46,0.00036362,60]
[423656981,1780282270000,-13073.5842,0.00036349,2]
[423656991,1780282270000,-218.7,0.00036622,60]
[423656988,1780282270000,-13073.5842,0.00036605,2]
[423656984,1780282270000,-27008.0,0.000364,30]
[423656987,1780282270000,-1200.73161,0.000366,120]
[423656985,1780282270000,-13073.5842,0.00036477,2]
[423656989,1780282270000,-165.90211103,0.00036621,60]
[423656990,1780282270000,-151.92,0.00036622,60]
[423656961,1780282270000,-13073.5842,0.00035965,2]
[423656976,1780282270000,-200.0,0.0003619,5]
[423656958,1780282270000,-150.0,0.00035951,2]
[423656935,1780282270000,-431.0,0.00035752,30]
[423656957,1780282270000,-407.0,0.00035951,2]
[423656940,1780282270000,-743.0,0.00035752,30]
[423656941,1780282270000,-13073.5842,0.00035837,2]
[423656983,1780282270000,-4999.999999,0.000364,120]
[423656932,1780282270000,-316.0,0.00035742,30]
[423656933,1780282270000,-234.0,0.00035752,30]
[423656936,1780282270000,-341.0,0.00035752,30]
[423656934,1780282270000,-2623.0,0.00035752,30]
[423656937,1780282270000,-1326.0,0.00035752,30]
[423656939,1780282270000,-1197.0,0.00035752,30]
[423656938,1780282270000,-485.0,0.00035752,30]
[423656943,1780282270000,-1264.68083354,0.0003594,2]
[423656942,1780282270000,-350.0,0.0003589,5]
[423656944,1780282270000,-2313.95472622,0.0003594,2]
[423656960,1780282270000,-157.0,0.00035961,3]
[423656952,1780282270000,-150.0,0.00035951,2]
[423656945,1780282270000,-2152.92073427,0.0003594,2]
[423656953,1780282270000,-169.85804362,0.00035951,2]
[423656946,1780282270000,-2234.12436971,0.0003594,2]
[423656949,1780282270000,-1483.57754087,0.0003594,2]
[423656950,1780282270000,-1310.17949886,0.0003594,2]
[423656948,1780282270000,-1281.42052653,0.0003594,2]
[423656947,1780282270000,-1371.80749299,0.0003594,2]
[423656955,1780282270000,-400.0,0.00035951,2]
[423656954,1780282270000,-400.0,0.00035951,2]
[423656963,1780282270000,-862.7794474,0.00036,2]
[423656965,1780282270000,-463.55715431,0.00036,2]
[423656964,1780282270000,-800.0,0.00036,2]
[423656966,1780282270000,-223.93508353,0.00036,120]
[423656951,1780282270000,-1897.38379695,0.0003594,2]
[423656997,1780282270000,-218.70617245,0.00036722,60]
[423656986,1780282270000,-1768.04807188,0.00036553,94]
[423656993,1780282270000,-2000.0,0.00036639,120]
[423657027,1780282270000,-3384.519,0.00037,120]
[423657028,1780282270000,-3384.519,0.00037,60]
[423657032,1780282270000,-3384.51,0.00037,30]
[423657041,1780282270000,-867.64,0.00037088,30]
[423657042,1780282270000,-234676.59872311,0.000371,2]
[423657031,1780282270000,-3384.519,0.00037,60]
[423657043,1780282270000,-2000.0,0.000371,7]
[423657034,1780282270000,-181.864,0.00037,2]
[423657037,1780282270000,-222.0,0.00037,120]
[423657036,1780282270000,-462.0,0.00037,30]
[423657038,1780282270000,-3995.2,0.00037,14]
[423657033,1780282270000,-150.0,0.00037,2]
[423657035,1780282270000,-710.07,0.00037,30]
[423657024,1780282270000,-168.9142955,0.00037,2]
[423657040,1780282270000,-198.865714,0.00037033,18]
[423657046,1780282270000,-193.34167,0.000372,18]
[423657048,1780282270000,-212.7187079,0.000372,120]
[423657047,1780282270000,-212.71870793,0.000372,120]
[423657050,1780282270000,-212.7187079,0.000372,120]
[423657053,1780282270000,-13073.5842,0.00037245,2]
[423657055,1780282270000,-378.0,0.000373,60]
[423657056,1780282270000,-208.86642014,0.000373,30]
[423657045,1780282270000,-151.92,0.00037122,60]
[423657049,1780282270000,-212.7187079,0.000372,120]
[423657054,1780282270000,-632.0,0.00037282,13]
[423657052,1780282270000,-151.92,0.00037222,60]
[423657051,1780282270000,-212.7187079,0.000372,120]
[423656995,1780282270000,-32846.0562,0.00036664,30]
[423657044,1780282270000,-13073.5842,0.00037117,2]
[423657022,1780282270000,-4987.20765738,0.00037,120]
[423657039,1780282270000,-151.92,0.00037022,60]
[423657026,1780282270000,-167.0,0.00037,120]
[423657023,1780282270000,-365.0,0.00037,2]
[423657001,1780282270000,-378.0,0.0003676,120]
[423656994,1780282270000,-2000.0,0.00036639,120]
[423657002,1780282270000,-2000.0,0.00036795,30]
[423657003,1780282270000,-1641.92098271,0.000368,2]
[423656998,1780282270000,-13073.5842,0.00036733,2]
[423657005,1780282270000,-481.78485205,0.00036822,2]
[423657004,1780282270000,-151.92,0.00036822,60]
[423657000,1780282270000,-195.25,0.00036759,30]
[423656999,1780282270000,-632.0,0.00036748,12]
[423657006,1780282270000,-350.0,0.00036849,5]
[423657010,1780282270000,-151.92,0.00036922,60]
[423657009,1780282270000,-250.52351855,0.00036899,3]
[423657008,1780282270000,-4440.12,0.00036868,30]
[423657007,1780282270000,-13073.5842,0.00036861,2]
[423656996,1780282270000,-151.92,0.00036722,60]
[423657025,1780282270000,-4500.0,0.00037,2]
[423657021,1780282270000,-369.85313897,0.00037,5]
[423657030,1780282270000,-3384.519,0.00037,120]
[423657029,1780282270000,-3384.51,0.00037,120]
[423657012,1780282270000,-250.0,0.00036976,2]
[423657020,1780282270000,-13073.5842,0.00036989,2]
[423657019,1780282270000,-1000.0,0.00036986,120]
[423657018,1780282270000,-267.5528608,0.00036976,2]
[423657014,1780282270000,-250.0,0.00036976,2]
[423657016,1780282270000,-250.0,0.00036976,2]
[423657017,1780282270000,-250.0,0.00036976,2]
[423657015,1780282270000,-250.0,0.00036976,2]
[423657011,1780282270000,-9617.86894195,0.00036976,2]
[423657013,1780282270000,-250.0,0.00036976,2]
[423657106,1780282271000,-2000.3274,0.00037571,2]
[423657105,1780282271000,-1209.1745,0.00037571,2]
[423657110,1780282271000,-4418.72541808,0.0003759,2]
[423657092,1780282271000,-150.0,0.00037449,2]
[423657090,1780282271000,-157.0,0.00037431,3]
[423657094,1780282271000,-407.0,0.00037449,2]
[423657087,1780282271000,-3336.74,0.00037393,2]
[423657095,1780282271000,-150.0,0.00037449,2]
[423657093,1780282271000,-400.0,0.00037449,2]
[423657088,1780282271000,-151.92,0.00037422,60]
[423657089,1780282271000,-2319.0,0.0003743,11]
[423657104,1780282271000,-1273.881,0.00037571,2]
[423657096,1780282271000,-207.30041193,0.00037456,120]
[423657108,1780282271000,-541.347739,0.00037585,120]
[423657097,1780282271000,-211.149415,0.000375,15]
[423657102,1780282271000,-218.25,0.00037534,120]
[423657098,1780282271000,-13073.5842,0.00037501,2]
[423657101,1780282271000,-1676.44,0.00037528,2]
[423657103,1780282271000,-828026.89552066,0.00037562,2]
[423657109,1780282271000,-507.826791,0.00037585,120]
[423657107,1780282271000,-10001.3586,0.00037571,2]
[423657120,1780282271000,-5000.0,0.00037771,2]
[423657111,1780282271000,-27008.0,0.000376,30]
[423657112,1780282271000,-151.92,0.00037622,60]
[423657121,1780282271000,-5000.0,0.00037771,2]
[423657114,1780282271000,-170.26281457,0.00037688,2]
[423657118,1780282271000,-5000.0,0.00037771,2]
[423657115,1780282271000,-152.0,0.00037701,5]
[423657099,1780282271000,-151.92,0.00037522,60]
[423657091,1780282271000,-160.18568747,0.00037449,2]
[423657113,1780282271000,-13073.5847,0.00037629,2]
[423657084,1780282271000,-250.0,0.00037373,2]
[423657057,1780282271000,-208.86642012,0.000373,30]
[423657058,1780282271000,-208.86642012,0.000373,30]
[423657066,1780282271000,-3551.0,0.00037339,2]
[423657059,1780282271000,-296.70850433,0.000373,30]
[423657065,1780282271000,-929.0,0.00037339,2]
[423657069,1780282271000,-3639.0,0.00037339,2]
[423657067,1780282271000,-525.0,0.00037339,2]
[423657064,1780282271000,-151.92,0.00037322,60]
[423657062,1780282271000,-262.00602867,0.000373,30]
[423657061,1780282271000,-296.70850432,0.000373,30]
[423657060,1780282271000,-296.70850432,0.000373,30]
[423657068,1780282271000,-1226.0,0.00037339,2]
[423657063,1780282271000,-325.89,0.0003731,120]
[423657086,1780282271000,-250.0,0.00037373,2]
[423657070,1780282271000,-250.43634639,0.00037347,2]
[423657080,1780282271000,-250.0,0.00037373,2]
[423657081,1780282271000,-250.0,0.00037373,2]
[423657079,1780282271000,-5000.0,0.00037373,2]
[423657071,1780282271000,-480.57,0.00037368,10]
[423657075,1780282271000,-5000.0,0.00037373,2]
[423657076,1780282271000,-5000.0,0.00037373,2]
[423657072,1780282271000,-13073.5842,0.00037373,2]
[423657073,1780282271000,-5000.0,0.00037373,2]
[423657077,1780282271000,-5000.0,0.00037373,2]
[423657074,1780282271000,-5000.0,0.00037373,2]
[423657082,1780282271000,-250.0,0.00037373,2]
[423657083,1780282271000,-250.0,0.00037373,2]
[423657085,1780282271000,-250.0,0.00037373,2]
[423657078,1780282271000,-5000.0,0.00037373,2]
[423657117,1780282271000,-151.92,0.00037722,60]
[423657100,1780282271000,-550.0,0.00037528,3]
[423657119,1780282271000,-5000.0,0.00037771,2]
[423657152,1780282271000,-399.29893364,0.00038,30]
[423657150,1780282271000,-41194.13762555,0.00038,30]
[423657156,1780282271000,-35868.0,0.00038,5]
[423657148,1780282271000,-151.99086224,0.00037922,60]
[423657151,1780282271000,-29075.74249539,0.00038,20]
[423657160,1780282271000,-2000.0,0.00038,48]
[423657170,1780282271000,-1553.861844,0.00038,15]
[423657161,1780282271000,-1000.0,0.00038,5]
[423657159,1780282271000,-412.896,0.00038,120]
[423657162,1780282271000,-600.0,0.00038,5]
[423657163,1780282271000,-850.0,0.00038,2]
[423657168,1780282271000,-151.0,0.00038,120]
[423657166,1780282271000,-222.0,0.00038,120]
[423657167,1780282271000,-404.0,0.00038,30]
[423657165,1780282271000,-221.0,0.00038,120]
[423657164,1780282271000,-462.0,0.00038,30]
[423657169,1780282271000,-1085.35,0.00038,7]
[423657171,1780282271000,-150.0,0.00038009,120]
[423657174,1780282271000,-5000.0,0.0003811,2]
[423657175,1780282271000,-5000.0,0.0003811,2]
[423657173,1780282271000,-282.37373032,0.000381,33]
[423657172,1780282271000,-387.0,0.00038013,2]
[423657180,1780282271000,-1148.5,0.00038125,30]
[423657178,1780282271000,-5000.0,0.0003811,2]
[423657179,1780282271000,-150.0,0.00038121,120]
[423657182,1780282271000,-5000.0,0.00038169,2]
[423657176,1780282271000,-5000.0,0.0003811,2]
[423657183,1780282271000,-5000.0,0.00038169,2]
[423657116,1780282271000,-150.0,0.0003772,120]
[423657154,1780282271000,-163.0,0.00038,120]
[423657153,1780282271000,-166.0,0.00038,120]
[423657177,1780282271000,-5000.0,0.0003811,2]
[423657149,1780282271000,-940.5312,0.00037949,30]
[423657155,1780282271000,-50000.0,0.00038,4]
[423657123,1780282271000,-5000.0,0.00037771,2]
[423657128,1780282271000,-250.0,0.00037771,2]
[423657125,1780282271000,-250.0,0.00037771,2]
[423657126,1780282271000,-250.0,0.00037771,2]
[423657127,1780282271000,-250.0,0.00037771,2]
[423657129,1780282271000,-250.0,0.00037771,2]
[423657124,1780282271000,-250.0,0.00037771,2]
[423657132,1780282271000,-1591.0,0.00037815,11]
[423657131,1780282271000,-150.0,0.00037814,120]
[423657130,1780282271000,-350.0,0.00037808,5]
[423657133,1780282271000,-632.0,0.00037816,13]
[423657136,1780282271000,-378.0,0.0003784,86]
[423657137,1780282271000,-3660.7,0.0003784,30]
[423657122,1780282271000,-5000.0,0.00037771,2]
[423657144,1780282271000,-387.0,0.00037897,2]
[423657147,1780282271000,-2319.0,0.00037912,11]
[423657146,1780282271000,-150.0,0.00037902,120]
[423657158,1780282271000,-159.0,0.00038,2]
[423657157,1780282271000,-6859.49347408,0.00038,6]
[423657135,1780282271000,-387.0,0.00037838,2]
[423657141,1780282271000,-1300.0,0.00037863,60]
[423657139,1780282271000,-500.0,0.00037863,60]
[423657140,1780282271000,-500.0,0.00037863,60]
[423657134,1780282271000,-151.92,0.00037822,60]
[423657145,1780282271000,-2319.0,0.00037898,11]
[423657143,1780282271000,-1593.0,0.00037895,11]
[423657138,1780282271000,-32586.0,0.00037857,3]
[423657181,1780282271000,-7296.60414781,0.00038137,60]
[423657142,1780282271000,-163.0,0.00037895,11]
[423657227,1780282272000,-1986.5,0.00038329,120]
[423657226,1780282272000,-2369.0,0.00038329,120]
[423657220,1780282272000,-2389.0,0.00038329,120]
[423657218,1780282272000,-2205.0,0.00038329,120]
[423657219,1780282272000,-2205.0,0.00038329,120]
[423657221,1780282272000,-2389.0,0.00038329,120]
[423657216,1780282272000,-1690.5,0.00038329,120]
[423657215,1780282272000,-1979.5,0.00038329,120]
[423657214,1780282272000,-1979.5,0.00038329,120]
[423657212,1780282272000,-2011.0,0.00038329,120]
[423657217,1780282272000,-1690.5,0.00038329,120]
[423657222,1780282272000,-1861.5,0.00038329,120]
[423657225,1780282272000,-2369.0,0.00038329,120]
[423657236,1780282272000,-1271.5,0.00038329,120]
[423657230,1780282272000,-2226.5,0.00038329,120]
[423657229,1780282272000,-2226.5,0.00038329,120]
[423657231,1780282272000,-2420.0,0.00038329,120]
[423657235,1780282272000,-1476.5,0.00038329,120]
[423657237,1780282272000,-1271.5,0.00038329,120]
[423657234,1780282272000,-1476.5,0.00038329,120]
[423657238,1780282272000,-5800.0,0.00038331,2]
[423657232,1780282272000,-2420.0,0.00038329,120]
[423657239,1780282272000,-5800.0,0.00038339,2]
[423657233,1780282272000,-2145.0,0.00038329,120]
[423657240,1780282272000,-1250.15,0.00038341,2]
[423657224,1780282272000,-2057.0,0.00038329,120]
[423657248,1780282272000,-500.0,0.00038356,2]
[423657228,1780282272000,-1986.5,0.00038329,120]
[423657223,1780282272000,-1861.5,0.00038329,120]
[423657199,1780282272000,-5012.82766752,0.00038196,2]
[423657206,1780282272000,-2333.0,0.00038285,11]
[423657241,1780282272000,-5800.0,0.00038348,2]
[423657184,1780282272000,-5000.0,0.00038169,2]
[423657197,1780282272000,-5000.0,0.00038196,2]
[423657196,1780282272000,-5000.0,0.00038196,2]
[423657186,1780282272000,-5000.0,0.00038169,2]
[423657188,1780282272000,-250.0,0.00038169,2]
[423657192,1780282272000,-1591.0,0.00038178,11]
[423657193,1780282272000,-4440.12,0.00038186,30]
[423657194,1780282272000,-5024.24664656,0.00038196,2]
[423657185,1780282272000,-5000.0,0.00038169,2]
[423657187,1780282272000,-250.0,0.00038169,2]
[423657191,1780282272000,-250.0,0.00038169,2]
[423657190,1780282272000,-250.0,0.00038169,2]
[423657189,1780282272000,-250.0,0.00038169,2]
[423657195,1780282272000,-5000.0,0.00038196,2]
[423657209,1780282272000,-5800.0,0.00038314,2]
[423657198,1780282272000,-5000.0,0.00038196,2]
[423657201,1780282272000,-164.0,0.00038215,11]
[423657200,1780282272000,-1000.0,0.00038212,60]
[423657210,1780282272000,-10075.24109283,0.0003832,2]
[423657211,1780282272000,-5800.0,0.00038322,2]
[423657203,1780282272000,-1589.0,0.00038255,11]
[423657202,1780282272000,-1603.0,0.00038244,11]
[423657204,1780282272000,-2319.0,0.00038255,11]
[423657205,1780282272000,-158.02378101,0.00038272,2]
[423657208,1780282272000,-5800.0,0.00038305,2]
[423657207,1780282272000,-396.03,0.000383,60]
[423657213,1780282272000,-2011.0,0.00038329,120]
[423657249,1780282272000,-500.0,0.00038356,2]
[423657251,1780282272000,-500.0,0.00038356,2]
[423657285,1780282272000,-1337.61,0.00038356,2]
[423657274,1780282272000,-500.0,0.00038356,2]
[423657278,1780282272000,-500.0,0.00038356,2]
[423657280,1780282272000,-500.0,0.00038356,2]
[423657291,1780282272000,-1337.61,0.00038356,2]
[423657279,1780282272000,-500.0,0.00038356,2]
[423657283,1780282272000,-500.0,0.00038356,2]
[423657284,1780282272000,-342.97781492,0.00038356,2]
[423657282,1780282272000,-500.0,0.00038356,2]
[423657292,1780282272000,-1337.61,0.00038356,2]
[423657281,1780282272000,-500.0,0.00038356,2]
[423657287,1780282272000,-1337.61,0.00038356,2]
[423657286,1780282272000,-1337.61,0.00038356,2]
[423657289,1780282272000,-1337.61,0.00038356,2]
[423657288,1780282272000,-1337.61,0.00038356,2]
[423657293,1780282272000,-1337.61,0.00038356,2]
[423657295,1780282272000,-1337.61,0.00038356,2]
[423657296,1780282272000,-1337.61,0.00038356,2]
[423657303,1780282272000,-1337.61,0.00038356,2]
[423657298,1780282272000,-1337.61,0.00038356,2]
[423657299,1780282272000,-1337.61,0.00038356,2]
[423657300,1780282272000,-1337.61,0.00038356,2]
[423657304,1780282272000,-1337.61,0.00038356,2]
[423657297,1780282272000,-1337.61,0.00038356,2]
[423657294,1780282272000,-1337.61,0.00038356,2]
[423657301,1780282272000,-1337.61,0.00038356,2]
[423657302,1780282272000,-1337.61,0.00038356,2]
[423657243,1780282272000,-2000.0,0.00038352,120]
[423657275,1780282272000,-500.0,0.00038356,2]
[423657272,1780282272000,-500.0,0.00038356,2]
[423657290,1780282272000,-1337.61,0.00038356,2]
[423657273,1780282272000,-500.0,0.00038356,2]
[423657245,1780282272000,-6236.39941177,0.00038356,120]
[423657250,1780282272000,-500.0,0.00038356,2]
[423657246,1780282272000,-500.0,0.00038356,2]
[423657242,1780282272000,-632.0,0.0003835,14]
[423657244,1780282272000,-150.0,0.00038353,7]
[423657247,1780282272000,-500.0,0.00038356,2]
[423657252,1780282272000,-500.0,0.00038356,2]
[423657253,1780282272000,-500.0,0.00038356,2]
[423657268,1780282272000,-500.0,0.00038356,2]
[423657255,1780282272000,-500.0,0.00038356,2]
[423657257,1780282272000,-500.0,0.00038356,2]
[423657256,1780282272000,-500.0,0.00038356,2]
[423657258,1780282272000,-500.0,0.00038356,2]
[423657262,1780282272000,-500.0,0.00038356,2]
[423657254,1780282272000,-500.0,0.00038356,2]
[423657259,1780282272000,-500.0,0.00038356,2]
[423657263,1780282272000,-500.0,0.00038356,2]
[423657277,1780282272000,-500.0,0.00038356,2]
[423657265,1780282272000,-500.0,0.00038356,2]
[423657270,1780282272000,-500.0,0.00038356,2]
[423657276,1780282272000,-500.0,0.00038356,2]
[423657266,1780282272000,-500.0,0.00038356,2]
[423657271,1780282272000,-500.0,0.00038356,2]
[423657267,1780282272000,-500.0,0.00038356,2]
[423657264,1780282272000,-500.0,0.00038356,2]
[423657260,1780282272000,-336.03712649,0.00038356,2]
[423657261,1780282272000,-500.0,0.00038356,2]
[423657269,1780282272000,-500.0,0.00038356,2]
[423657348,1780282273000,-1805.75,0.00038356,2]
[423657341,1780282273000,-595.54289715,0.00038356,2]
[423657347,1780282273000,-1805.75,0.00038356,2]
[423657342,1780282273000,-1805.75,0.00038356,2]
[423657346,1780282273000,-1805.75,0.00038356,2]
[423657340,1780282273000,-314.50421768,0.00038356,2]
[423657338,1780282273000,-566.89961289,0.00038356,2]
[423657343,1780282273000,-1805.75,0.00038356,2]
[423657337,1780282273000,-500.0,0.00038356,2]
[423657344,1780282273000,-1805.75,0.00038356,2]
[423657339,1780282273000,-500.0,0.00038356,2]
[423657350,1780282273000,-1805.75,0.00038356,2]
[423657345,1780282273000,-1805.75,0.00038356,2]
[423657351,1780282273000,-1805.75,0.00038356,2]
[423657364,1780282273000,-1805.75,0.00038356,2]
[423657349,1780282273000,-1805.75,0.00038356,2]
[423657352,1780282273000,-1805.75,0.00038356,2]
[423657353,1780282273000,-1805.75,0.00038356,2]
[423657359,1780282273000,-1805.75,0.00038356,2]
[423657357,1780282273000,-1805.75,0.00038356,2]
[423657358,1780282273000,-1805.75,0.00038356,2]
[423657356,1780282273000,-1805.75,0.00038356,2]
[423657355,1780282273000,-1805.75,0.00038356,2]
[423657361,1780282273000,-1805.75,0.00038356,2]
[423657360,1780282273000,-1805.75,0.00038356,2]
[423657362,1780282273000,-1805.75,0.00038356,2]
[423657372,1780282273000,-1000.0,0.00038356,2]
[423657334,1780282273000,-500.0,0.00038356,2]
[423657354,1780282273000,-1805.75,0.00038356,2]
[423657336,1780282273000,-500.0,0.00038356,2]
[423657305,1780282273000,-1337.61,0.00038356,2]
[423657328,1780282273000,-502.0,0.00038356,2]
[423657306,1780282273000,-1337.61,0.00038356,2]
[423657307,1780282273000,-1337.61,0.00038356,2]
[423657308,1780282273000,-1337.74342065,0.00038356,2]
[423657318,1780282273000,-500.0,0.00038356,2]
[423657309,1780282273000,-500.0,0.00038356,2]
[423657319,1780282273000,-500.0,0.00038356,2]
[423657310,1780282273000,-500.0,0.00038356,2]
[423657311,1780282273000,-500.0,0.00038356,2]
[423657317,1780282273000,-500.0,0.00038356,2]
[423657314,1780282273000,-500.0,0.00038356,2]
[423657312,1780282273000,-500.0,0.00038356,2]
[423657316,1780282273000,-500.0,0.00038356,2]
[423657315,1780282273000,-500.0,0.00038356,2]
[423657313,1780282273000,-500.0,0.00038356,2]
[423657321,1780282273000,-500.0,0.00038356,2]
[423657332,1780282273000,-500.0,0.00038356,2]
[423657331,1780282273000,-500.0,0.00038356,2]
[423657324,1780282273000,-500.0,0.00038356,2]
[423657320,1780282273000,-500.0,0.00038356,2]
[423657322,1780282273000,-500.0,0.00038356,2]
[423657329,1780282273000,-500.70174526,0.00038356,2]
[423657325,1780282273000,-500.0,0.00038356,2]
[423657326,1780282273000,-500.0,0.00038356,2]
[423657330,1780282273000,-500.0,0.00038356,2]
[423657323,1780282273000,-500.0,0.00038356,2]
[423657333,1780282273000,-500.0,0.00038356,2]
[423657327,1780282273000,-500.0,0.00038356,2]
[423657335,1780282273000,-500.0,0.00038356,2]
[423657371,1780282273000,-1000.0,0.00038356,2]
[423657368,1780282273000,-1000.0,0.00038356,2]
[423657370,1780282273000,-1000.0,0.00038356,2]
[423657402,1780282273000,-1000.0,0.00038356,2]
[423657401,1780282273000,-1000.0,0.00038356,2]
[423657405,1780282273000,-1000.0,0.00038356,2]
[423657406,1780282273000,-1000.0,0.00038356,2]
[423657404,1780282273000,-1000.0,0.00038356,2]
[423657407,1780282273000,-1000.0,0.00038356,2]
[423657403,1780282273000,-1000.0,0.00038356,2]
[423657400,1780282273000,-1000.0,0.00038356,2]
[423657408,1780282273000,-1000.0,0.00038356,2]
[423657410,1780282273000,-1000.0,0.00038356,2]
[423657420,1780282273000,-956.4722324,0.00038356,2]
[423657415,1780282273000,-1000.0,0.00038356,2]
[423657419,1780282273000,-1126.0,0.00038356,120]
[423657399,1780282273000,-1000.0,0.00038356,2]
[423657411,1780282273000,-1000.0,0.00038356,2]
[423657418,1780282273000,-1000.0,0.00038356,2]
[423657409,1780282273000,-1000.0,0.00038356,2]
[423657417,1780282273000,-1126.0,0.00038356,120]
[423657414,1780282273000,-1000.0,0.00038356,2]
[423657412,1780282273000,-1000.0,0.00038356,2]
[423657416,1780282273000,-1000.0,0.00038356,2]
[423657426,1780282273000,-1126.0,0.00038356,120]
[423657422,1780282273000,-1126.0,0.00038356,120]
[423657425,1780282273000,-1126.0,0.00038356,120]
[423657421,1780282273000,-1126.0,0.00038356,120]
[423657423,1780282273000,-1126.0,0.00038356,120]
[423657424,1780282273000,-1126.0,0.00038356,120]
[423657363,1780282273000,-1805.75,0.00038356,2]